fUST/lending_fUST_20250920
["ID","MTS","AMOUNT","RATE_DAILY","PERIOD"]
[386462545,1758306652462,-154.88731143,0.00028258,15]
[386462546,1758306652473,-166.40936905,0.00028291,2]
[386462547,1758306652483,-801.86,0.00028321,15]
[386462548,1758306652492,-5406.57150952,0.00028347,2]
[386462549,1758306652502,-1077.2,0.000284,2]
[386462550,1758306652511,-1077.199999,0.000284,2]
[386462551,1758306652521,-1077.199999,0.000284,2]
[386462552,1758306652531,-801.86,0.00028421,15]
[386462553,1758306652540,-80360.84547621,0.0002844,2]
[386462554,1758306652706,-1000.0,0.000248,2]
[386462555,1758306652717,-160.0,0.00025,10]
[386462556,1758306652727,-151.740171,0.00026613,7]
[386462557,1758306652737,-500.0,0.00026857,2]
[386462558,1758306652746,-160.0,0.00027,30]
[386462559,1758306652756,-160.0,0.00027,30]
[386462560,1758306652765,-500.0,0.00027131,2]
[386462561,1758306652775,-151.740171,0.00027257,2]
[386462562,1758306652785,-151.740171,0.0002728,10]
[386462563,1758306652794,-500.0,0.00027405,2]
[386462564,1758306652803,-151.740171,0.0002744,3]
[386462565,1758306652813,-151.740171,0.00027584,7]
[386462566,1758306652823,-503.99811688,0.00027679,2]
[386462567,1758306652832,-151.740171,0.0002804,10]
[386462568,1758306652842,-184380.97026949,0.0002844,2]
[386462569,1758306652853,-3296.20653226,0.0002844,2]
[386462887,1758307005862,165.9024738,0.00021053,2]
[386462888,1758307083303,223.25434656,0.00021055,2]
[386462901,1758307286137,165.90247376,0.0002105,2]
[386462920,1758307558157,165.90247376,0.00021048,2]
[386462922,1758307642720,396.52650603,0.00021044,2]
[386462923,1758307757160,-300.0,0.00021141,2]
[386462924,1758307757182,-9977.81551642,0.00021142,2]
[386462925,1758307757202,-160.0,0.00021143,2]
[386462926,1758307757223,-1200.0,0.00021143,2]
[386462927,1758307757244,-944.0,0.00021144,2]
[386462928,1758307757264,-500.0,0.00021146,2]
[386462929,1758307757287,-500.0,0.00021146,2]
[386462930,1758307757308,-500.0,0.00021146,2]
[386462931,1758307757329,-500.0,0.00021146,2]
[386462932,1758307757349,-500.0,0.00021146,2]
[386462933,1758307757368,-500.0,0.00021146,2]
[386462934,1758307757391,-500.0,0.00021146,2]
[386462935,1758307757411,-500.0,0.00021146,2]
[386462936,1758307757431,-500.0,0.00021146,2]
[386462937,1758307757455,-543.02425744,0.00021146,2]
[386462938,1758307757476,-391.60456386,0.00021146,2]
[386462939,1758307757495,-230.77313368,0.00021146,2]
[386462940,1758307757514,-500.0,0.00021146,2]
[386462941,1758307757535,-500.0,0.00021146,2]
[386462942,1758307757555,-500.0,0.00021146,2]
[386462943,1758307757577,-500.0,0.00021146,2]
[386462944,1758307757596,-452.85433119,0.00021146,2]
[386462945,1758307757618,-500.0,0.00021146,2]
[386462946,1758307757638,-500.0,0.00021146,2]
[386462947,1758307757658,-500.0,0.00021146,2]
[386462948,1758307757678,-505.17934655,0.00021146,2]
[386462949,1758307757698,-500.0,0.00021146,2]
[386462950,1758307757719,-500.0,0.00021146,2]
[386462951,1758307757740,-500.0,0.00021146,2]
[386462952,1758307757762,-500.0,0.00021146,2]
[386462953,1758307757784,-624.14066203,0.00021146,2]
[386462954,1758307757804,-297.52852636,0.00021146,2]
[386462955,1758307757824,-500.0,0.00021146,2]
[386462956,1758307757848,-500.0,0.00021146,2]
[386462957,1758307757872,-500.0,0.00021146,2]
[386462958,1758307757892,-500.0,0.00021146,2]
[386462959,1758307757914,-500.0,0.00021146,2]
[386462960,1758307757935,-427.58155646,0.00021146,2]
[386462961,1758307818342,165.90247376,0.00021047,2]
[386463004,1758307832837,-242.27246994,0.00021145,2]
[386463006,1758307832847,-102.87731178,0.00021145,2]
[386463011,1758307832890,-82.19944906,0.00021145,2]
[386463013,1758307832899,-17427.42566988,0.00021146,2]
[386463126,1758307839069,-500.0,0.00021145,2]
[386463128,1758307839079,-500.0,0.00021145,2]
[386463130,1758307839089,-500.0,0.00021145,2]
[386463132,1758307839099,-500.0,0.00021145,2]
[386463134,1758307839109,-500.0,0.00021145,2]
[386463136,1758307839119,-462.64727339,0.00021145,2]
[386463138,1758307839129,-500.0,0.00021145,2]
[386463140,1758307839138,-500.0,0.00021145,2]
[386463142,1758307839148,-500.0,0.00021145,2]
[386463144,1758307839157,-500.0,0.00021145,2]
[386463146,1758307839167,-500.0,0.00021145,2]
[386463148,1758307839177,-184.99036662,0.00021145,2]
[386463206,1758307840807,-227.42369958,0.00021145,2]
[386463207,1758307840817,-500.0,0.00021145,2]
[386463208,1758307840826,-500.0,0.00021145,2]
[386463209,1758307840835,-500.0,0.00021145,2]
[386463210,1758307840845,-500.0,0.00021145,2]
[386463211,1758307840854,-500.0,0.00021145,2]
[386463212,1758307840864,-500.0,0.00021145,2]
[386463213,1758307840875,-500.0,0.00021145,2]
[386463214,1758307840889,-390.44847183,0.00021145,2]
[386463215,1758307840899,-500.0,0.00021145,2]
[386463216,1758307840909,-500.0,0.00021145,2]
[386463217,1758307840919,-500.0,0.00021145,2]
[386463218,1758307840929,-500.0,0.00021145,2]
[386463219,1758307840938,-500.0,0.00021145,2]
[386463220,1758307840948,-500.0,0.00021145,2]
[386463221,1758307840959,-500.0,0.00021145,2]
[386463222,1758307840969,-500.0,0.00021145,2]
[386463223,1758307840979,-500.0,0.00021145,2]
[386463224,1758307840989,-500.0,0.00021145,2]
[386463226,1758307840998,-27073.49277896,0.00021146,2]
[386463228,1758307841008,-480.0,0.0002115,2]
[386463230,1758307841018,-365.34906976,0.0002115,2]
[386463232,1758307841028,-200.23223602,0.00021152,2]
[386463233,1758307841038,-480.0,0.00021155,2]
[386463234,1758307841048,-480.0,0.00021155,2]
[386463235,1758307841058,-334.27914084,0.00021155,2]
[386463236,1758307841068,-319.99154485,0.00021155,2]
[386463237,1758307841078,-480.0,0.00021155,2]
[386463238,1758307841088,-480.0,0.00021155,2]
[386463239,1758307841097,-445.94577303,0.00021155,2]
[386463240,1758307841106,-363.83362168,0.00021155,2]
[386463241,1758307841116,-480.0,0.00021155,2]
[386463242,1758307841125,-833.37,0.00021157,2]
[386463244,1758307841135,-441.27092704,0.00021157,2]
[386463246,1758307841144,-500.0,0.00021227,2]
[386463248,1758307841154,-500.0,0.00021227,2]
[386463250,1758307841164,-500.0,0.00021227,2]
[386463252,1758307841173,-349.75,0.00021429,2]
[386463254,1758307841183,-833.37,0.00021431,2]
[386463256,1758307841192,-833.37,0.00021705,2]
[386463258,1758307841202,-500.0,0.00021931,2]
[386463260,1758307841211,-833.37,0.00021979,2]
[386463262,1758307841220,-833.37,0.00022253,2]
[386463264,1758307841230,-833.37,0.00022527,2]
[386463266,1758307841239,-833.37,0.00022801,2]
[386463267,1758307841248,-160.0,0.00023,2]
[386463269,1758307841257,-160.0,0.00023,2]
[386463271,1758307841267,-160.0,0.00023,2]
[386463273,1758307841277,-833.37,0.00023075,2]
[386463275,1758307841286,-165.90247376,0.00023095,2]
[386463277,1758307841295,-833.37,0.00023349,2]
[386463279,1758307841305,-833.37,0.00023623,2]
[386463281,1758307841314,-833.37,0.00023897,2]
[386463283,1758307841323,-160.0,0.00023947,2]
[386463285,1758307841333,-313.657,0.00024057,5]
[386463287,1758307841342,-833.37,0.00024171,2]
[386463289,1758307841351,-833.37,0.00024445,2]
[386463291,1758307841360,-217.99592756,0.0002446,2]
[386463293,1758307841375,-848.13460282,0.0002446,2]
[386463295,1758307841398,-233.43972884,0.0002446,2]
[386463297,1758307841407,-500.0,0.00024483,2]
[386463299,1758307841417,-833.37,0.00024719,2]
[386463301,1758307841427,-930.85540873,0.000248,2]
[386463303,1758307841435,-16676.8178589,0.000249,2]
[386463513,1758307843911,-160.0,0.00023,2]
[386463514,1758307843921,-16149.30577152,0.000249,2]
[386463523,1758307844017,-69605.10831558,0.000249,2]
[386463525,1758307844027,-833.37,0.00024993,2]
[386463527,1758307844036,-500.0,0.00025052,2]
[386463529,1758307844047,-500.0,0.00025052,2]
[386463531,1758307844056,-977.0,0.00025056,2]
[386463532,1758307844065,-2158.0,0.00025056,2]
[386463534,1758307844075,-634.0,0.00025056,2]
[386463536,1758307844084,-5700.3,0.000251,7]
[386463538,1758307844094,-165.90247376,0.00025142,2]
[386463540,1758307844103,-833.37,0.00025267,2]
[386463541,1758307844114,-319.73206177,0.00025336,2]
[386463543,1758307844123,-500.0,0.00025426,2]
[386463545,1758307844133,-1838.0,0.00025436,2]
[386463547,1758307844142,-600.0,0.00025499,20]
[386463549,1758307844151,-262.46798403,0.000255,2]
[386463550,1758307844160,-500.0,0.000255,2]
[386463551,1758307844169,-500.0,0.000255,2]
[386463552,1758307844178,-500.0,0.000255,2]
[386463554,1758307844187,-500.0,0.000255,2]
[386463556,1758307844196,-515.47645687,0.000255,2]
[386463558,1758307844205,-500.0,0.000255,2]
[386463560,1758307844214,-500.0,0.000255,2]
[386463561,1758307844223,-833.37,0.00025541,2]
[386463563,1758307844232,-500.0,0.00025707,2]
[386463565,1758307844240,-833.37,0.00025815,2]
[386463566,1758307844249,-319.73206175,0.00026087,2]
[386463568,1758307844258,-833.37,0.00026089,2]
[386463570,1758307844267,-833.37,0.00026363,2]
[386463572,1758307844277,-217.99592756,0.0002643,7]
[386463573,1758307844287,-833.37,0.00026637,2]
[386463575,1758307844295,-210.0,0.0002673,16]
[386463577,1758307844305,-319.73206175,0.00026838,2]
[386463579,1758307844314,-102431.231946,0.0002689,2]
[386463581,1758307844323,-930.85540873,0.0002689,2]
[386463582,1758307844333,-2000.0,0.000269,2]
[386463584,1758307844342,-2000.0,0.000269,2]
[386463586,1758307844352,-833.37,0.00026911,2]
[386463588,1758307844361,-151.740171,0.00027,3]
[386463589,1758307844370,-833.37,0.00027185,2]
[386463591,1758307844379,-165.90247376,0.0002719,2]
[386463593,1758307844388,-833.41248215,0.00027459,2]
[386463595,1758307844397,-385.32425286,0.00027586,2]
[386463596,1758307844407,-319.73206175,0.00027589,2]
[386463598,1758307844417,-500.0,0.00027618,7]
[386463600,1758307844426,-1309.62327294,0.0002779,2]
[386463602,1758307844435,-500.0,0.00027873,5]
[386463604,1758307844444,-2000.0,0.000279,2]
[386463605,1758307844453,-2000.0,0.000279,2]
[386463607,1758307844462,-487.68368166,0.00027934,2]
[386463609,1758307844471,-1081.32,0.00028,2]
[386463611,1758307844480,-720.0,0.00028049,20]
[386463612,1758307844490,-977.0,0.00028056,2]
[386463614,1758307844499,-2158.0,0.00028056,2]
[386463616,1758307844508,-634.0,0.00028056,2]
[386463618,1758307844517,-1081.32,0.0002814,2]
[386463620,1758307844526,-500.0,0.00028227,2]
[386463621,1758307844535,-319.73206175,0.0002834,2]
[386463623,1758307844545,-500.0,0.0002836,5]
[386463625,1758307844553,-500.0,0.0002836,20]
[386463626,1758307844562,-5700.3,0.000284,7]
[386463628,1758307844571,-204862.463891,0.0002842,2]
[386463630,1758307844580,-2792.56622619,0.0002842,2]
[386463632,1758307844589,-13962.831131,0.0002843,2]
[386463634,1758307844598,-706464.97772204,0.0002844,2]
[386463635,1758307844608,-151.0,0.0002844,7]
[386463637,1758307844617,-151.0,0.0002844,7]
[386463639,1758307844626,-151.0,0.0002844,7]
[386463641,1758307844635,-184.768322,0.0002844,7]
[386463642,1758307844644,-864.316957,0.0002844,7]
[386463644,1758307844653,-864.316957,0.0002844,7]
[386463646,1758307844662,-864.316957,0.0002844,7]
[386463648,1758307844672,-864.316957,0.0002844,7]
[386463650,1758307844681,-151.0,0.0002844,7]
[386463651,1758307844690,-5000.0,0.0002845,18]
[386463653,1758307844699,-500.0,0.0002846,5]
[386463655,1758307844708,-500.0,0.0002846,20]
[386463657,1758307844718,-409.99637636,0.0002846,5]
[386463659,1758307844728,-848.13460282,0.000285,7]
[386463660,1758307844737,-233.43972884,0.000285,7]
[386463662,1758307844746,-500.0,0.00028501,2]
[386463664,1758307844756,-1309.62327293,0.00028514,2]
[386463666,1758307844765,-801.86,0.00028521,15]
[386463668,1758307844775,-210.0,0.0002854,21]
[386463669,1758307844784,-200.0,0.00028608,120]
[386463671,1758307844792,-801.86,0.00028621,15]
[386463673,1758307844801,-200.0,0.00028653,120]
[386463675,1758307844811,-801.86,0.00028721,15]
[386463677,1758307844821,-200.0,0.00028765,120]
[386463678,1758307844830,-500.0,0.00028775,2]
[386463680,1758307844840,-923.53,0.000288,60]
[386463682,1758307844849,-5000.0,0.00028816,30]
[386463684,1758307844858,-5000.0,0.00028816,30]
[386463686,1758307844867,-5000.0,0.00028816,30]
[386463688,1758307844881,-5000.0,0.00028816,30]
[386463689,1758307844890,-5000.0,0.00028816,30]
[386463691,1758307844899,-4614.01,0.00028816,30]
[386463693,1758307844908,-801.86,0.00028821,15]
[386463695,1758307844919,-1076.6,0.000289,2]
[386463696,1758307844928,-1077.199999,0.000289,2]
[386463698,1758307844937,-801.86,0.00028921,15]
[386463700,1758307844948,-160.0,0.00028961,30]
[386463702,1758307844956,-848.13460282,0.00028961,30]
[386463704,1758307844967,-233.43972884,0.00028961,30]
[386463705,1758307844976,-531.75067929,0.00028961,30]
[386463707,1758307844985,-217.99592756,0.00028961,30]
[386463709,1758307844995,-9977.81551642,0.00028961,30]
[386463711,1758307845004,-261.59,0.00029,14]
[386463713,1758307845015,-151.0,0.00029,120]
[386463715,1758307845024,-3035.55346182,0.00029,60]
[386463716,1758307845033,-1000.0,0.00029,29]
[386463718,1758307845042,-522.6179731,0.00029,60]
[386463720,1758307845052,-217.99592756,0.00029,30]
[386463722,1758307845061,-160.0,0.00029,30]
[386463723,1758307845070,-531.75067929,0.00029,30]
[386463725,1758307845079,-160.0,0.00029,30]
[386463727,1758307845089,-848.13460282,0.00029,30]
[386463729,1758307845098,-233.43972884,0.00029,30]
[386463731,1758307845107,-801.86,0.00029021,15]
[386463732,1758307845116,-500.0,0.00029049,2]
[386463734,1758307845126,-200.0,0.00029051,120]
[386463736,1758307845135,-200.0,0.00029101,120]
[386463738,1758307845145,-200.0,0.00029105,120]
[386463740,1758307845154,-801.86,0.00029121,15]
[386463742,1758307845163,-200.0,0.00029216,120]
[386463743,1758307845171,-801.86,0.00029221,15]
[386463745,1758307845181,-4325.25720767,0.00029237,2]
[386463747,1758307845190,-1309.62327293,0.00029237,2]
[386463749,1758307845199,-332.8187381,0.00029237,2]
[386463750,1758307845208,-500.0,0.00029262,7]
[386463752,1758307845217,-12000.0,0.000293,2]
[386463754,1758307845227,-200.0,0.00029314,120]
[386463756,1758307845236,-801.86,0.00029321,15]
[386463758,1758307845246,-500.0,0.00029323,2]
[386463760,1758307845255,-1014.39560347,0.00029337,2]
[386463761,1758307845264,-151.0,0.00029337,7]
[386463763,1758307845273,-151.0,0.00029337,7]
[386463765,1758307845283,-151.0,0.00029337,7]
[386463767,1758307845292,-200.0,0.00029337,120]
[386463769,1758307845301,-200.0,0.00029337,120]
[386463770,1758307845310,-864.316957,0.00029337,7]
[386463772,1758307845320,-864.316957,0.00029337,7]
[386463774,1758307845329,-864.316957,0.00029337,7]
[386463776,1758307845338,-864.316957,0.00029337,7]
[386463778,1758307845347,-864.316957,0.00029337,7]
[386463780,1758307845356,-864.316957,0.00029337,7]
[386463781,1758307845366,-864.316957,0.00029337,7]
[386463783,1758307845375,-864.316957,0.00029337,7]
[386463785,1758307845385,-864.316957,0.00029337,7]
[386463787,1758307845394,-864.316957,0.00029337,7]
[386463789,1758307845403,-864.316957,0.00029337,7]
[386463791,1758307845413,-864.316957,0.00029337,7]
[386463793,1758307845424,-864.316957,0.00029337,7]
[386463794,1758307845433,-864.316957,0.00029337,7]
[386463796,1758307845443,-864.316957,0.00029337,7]
[386463798,1758307845452,-864.316953,0.00029337,7]
[386463811,1758307845581,-1292.0,0.00029337,30]
[386463813,1758307845592,-370211.06579869,0.00029337,20]
[386463814,1758307845602,-151.17376,0.00029337,31]
[386463816,1758307845611,-158.7008226,0.00029337,2]
[386463818,1758307845621,-4135.51420172,0.00029337,30]
[386463820,1758307845631,-1015.03146283,0.00029337,10]
[386463822,1758307845640,-290533.27795935,0.00029337,20]
[386463824,1758307845649,-59118.92835626,0.00029337,2]
[386463826,1758307845658,-225.03746023,0.00029337,15]
[386463827,1758307845667,-300.0,0.00029337,2]
[386463829,1758307845676,-3879.10604657,0.00029337,2]
[386463831,1758307845685,-809.20567966,0.00029337,2]
[386463833,1758307845694,-258.04258288,0.00029337,2]
[386463834,1758307845703,-239.82326189,0.00029337,10]
[386463836,1758307845713,-296.69532391,0.00029337,2]
[386463838,1758307845723,-326.80772839,0.00029337,2]
[386463840,1758307845732,-291.66809887,0.00029337,2]
[386463842,1758307845741,-194.39318628,0.00029337,12]
[386463843,1758307845750,-51705.46820806,0.00029337,2]
[386463845,1758307845759,-636.8451149,0.00029337,2]
[386463847,1758307845768,-1360.99436351,0.00029337,2]
[386463849,1758307845778,-156.52253606,0.00029337,2]
[386463851,1758307845787,-49057.47542628,0.00029337,2]
[386463853,1758307845796,-6289.97764458,0.00029337,2]
[386463854,1758307845805,-1092.94601412,0.00029337,10]
[386463856,1758307845815,-157.53181118,0.00029337,2]
[386463858,1758307845824,-7223.81959738,0.00029337,5]
[386463860,1758307845833,-1715.84536765,0.00029337,2]
[386463861,1758307845843,-7733.85765393,0.00029337,7]
[386463863,1758307845853,-2074.62256101,0.00029337,2]
[386463865,1758307845863,-1589.0,0.00029337,3]
[386463867,1758307845874,-200.0,0.00029337,10]
[386463869,1758307845887,-10567.2838175,0.00029337,7]
[386463870,1758307845896,-507.27246468,0.00029337,2]
[386463872,1758307845905,-467.56534451,0.00029337,2]
[386463874,1758307845914,-179.18836279,0.00029337,2]
[386463876,1758307845925,-498.0,0.00029337,7]
[386463878,1758307845934,-907.5079221,0.00029337,14]
[386463880,1758307845943,-30435.26575163,0.00029337,2]
[386463881,1758307845953,-189.05283134,0.00029337,2]
[386463883,1758307845963,-1396.01201634,0.00029337,2]
[386463885,1758307845973,-5890.92992311,0.00029337,2]
[386463887,1758307845982,-10678.36971093,0.00029337,2]
[386463889,1758307845992,-650.78983879,0.00029337,2]
[386463891,1758307846001,-1536.88357174,0.00029337,14]
[386463893,1758307846010,-154.00616235,0.00029337,7]
[386463894,1758307846020,-2920.0,0.00029337,2]
[386463896,1758307846032,-10211.90845087,0.00029337,2]
[386463898,1758307846043,-810.94404942,0.00029337,15]
[386463900,1758307846052,-163.20202856,0.00029337,2]
[386463902,1758307846061,-2442.15892483,0.00029337,2]
[386463904,1758307846071,-384.82595251,0.00029337,2]
[386463905,1758307846080,-201.33285665,0.00029337,2]
[386463907,1758307846089,-1516.98116295,0.00029337,15]
[386463909,1758307846098,-182.20083437,0.00029337,2]
[386463911,1758307846107,-3146.03926452,0.00029337,2]
[386463913,1758307846116,-2347.14289143,0.00029337,2]
[386463914,1758307846125,-100200.21841358,0.00029337,2]
[386463916,1758307846135,-2511.39827173,0.00029337,7]
[386463918,1758307846143,-150.24431711,0.00029337,2]
[386463920,1758307846153,-1004.75653226,0.00029337,14]
[386463922,1758307846163,-258.37063626,0.00029337,2]
[386463923,1758307846172,-3764.08985666,0.00029337,2]
[386463925,1758307846183,-157.9,0.00029337,2]
[386463927,1758307846192,-1393764.86997284,0.00029337,20]
[386463929,1758307846202,-3015.00090761,0.00029337,15]
[386463931,1758307846211,-30086.74457842,0.00029337,10]
[386463933,1758307846221,-494.78399,0.00029337,31]
[386463934,1758307846230,-2000.0,0.00029337,30]
[386463936,1758307846239,-2596966.73027919,0.00029337,20]
[386463939,1758307846252,-490.49,0.00029337,20]
[386463975,1758307846644,-445.0,0.00029337,20]
[386463988,1758307846783,-151.740171,0.00025821,3]
[386463990,1758307846792,-151.740171,0.00025904,7]
[386463992,1758307846801,-151.740171,0.00026359,2]
[386463994,1758307846811,-151.740171,0.00026415,7]
[386463995,1758307846819,-151.740171,0.0002646,30]
[386463997,1758307846828,-151.740171,0.0002664,14]
[386463999,1758307846838,-151.740171,0.00027064,4]
[386464001,1758307846847,-7782.53781261,0.00029337,20]
[386464006,1758307846891,-1329.25319322,0.00029337,20]
[386464008,1758307846902,-304.05670005,0.00029337,20]
[386464011,1758307846913,-17562.01163147,0.00029337,20]
[386464015,1758307846949,-700.90795355,0.00029337,20]
[386464017,1758307846963,-1101.14881583,0.00029337,20]
[386464023,1758307847003,-453.0,0.00029337,20]
[386464268,1758308298903,185.16955523,0.00021047,2]
[386464276,1758308534194,185.16955523,0.00021046,2]
[386464291,1758308759473,185.16955523,0.00021043,2]
[386464304,1758308956156,-543.2423209,0.00021136,2]
[386464307,1758309023805,185.16955523,0.00021042,2]
[386464409,1758309037923,-160.0,0.00021136,2]
[386464410,1758309037933,-160.0,0.00021137,2]
[386464411,1758309037943,-300.0,0.0002114,2]
[386464412,1758309037952,-1200.0,0.0002114,2]
[386464413,1758309037961,-1200.0,0.00021141,2]
[386464414,1758309037970,-300.0,0.00021141,2]
[386464415,1758309037980,-300.0,0.00021141,2]
[386464416,1758309037989,-300.0,0.00021141,2]
[386464417,1758309037999,-235.0,0.00021141,2]
[386464418,1758309038009,-50000.0,0.00021142,2]
[386464419,1758309038019,-600.65614004,0.00021142,2]
[386464420,1758309038028,-480.0,0.00021142,2]
[386464421,1758309038037,-480.0,0.00021142,2]
[386464422,1758309038046,-480.0,0.00021142,2]
[386464423,1758309038055,-480.0,0.00021142,2]
[386464424,1758309038065,-480.0,0.00021142,2]
[386464425,1758309038074,-480.0,0.00021142,2]
[386464426,1758309038083,-480.0,0.00021142,2]
[386464427,1758309038092,-188.8714444,0.00021142,2]
[386464429,1758309038101,-169.59072896,0.00021142,2]
[386464430,1758309038111,-480.0,0.00021143,2]
[386464431,1758309038120,-480.0,0.00021143,2]
[386464432,1758309038130,-480.0,0.00021143,2]
[386464433,1758309038140,-480.0,0.00021144,2]
[386464434,1758309038149,-480.0,0.00021144,2]
[386464435,1758309038159,-480.0,0.00021144,2]
[386464436,1758309038168,-480.0,0.00021144,2]
[386464437,1758309038177,-480.0,0.00021144,2]
[386464438,1758309038186,-480.0,0.00021144,2]
[386464439,1758309038196,-480.0,0.00021144,2]
[386464440,1758309038206,-480.0,0.00021144,2]
[386464441,1758309038215,-480.0,0.00021144,2]
[386464442,1758309038224,-480.0,0.00021144,2]
[386464443,1758309038233,-480.0,0.00021144,2]
[386464444,1758309038242,-480.0,0.00021144,2]
[386464445,1758309038251,-480.0,0.00021144,2]
[386464446,1758309038261,-480.0,0.00021144,2]
[386464447,1758309038270,-480.0,0.00021144,2]
[386464448,1758309038278,-480.0,0.00021144,2]
[386464449,1758309038288,-480.0,0.00021144,2]
[386464450,1758309038297,-480.0,0.00021144,2]
[386464451,1758309038306,-480.0,0.00021144,2]
[386464452,1758309038315,-480.0,0.00021144,2]
[386464453,1758309038325,-480.0,0.00021144,2]
[386464454,1758309038335,-480.0,0.00021144,2]
[386464455,1758309038344,-480.0,0.00021144,2]
[386464456,1758309038355,-480.0,0.00021144,2]
[386464457,1758309038365,-480.0,0.00021144,2]
[386464458,1758309038375,-480.0,0.00021144,2]
[386464459,1758309038384,-480.0,0.00021144,2]
[386464460,1758309038394,-480.0,0.00021144,2]
[386464461,1758309038403,-480.0,0.00021144,2]
[386464462,1758309038413,-480.0,0.00021144,2]
[386464463,1758309038422,-480.0,0.00021144,2]
[386464464,1758309038431,-480.0,0.00021145,2]
[386464465,1758309038441,-480.0,0.00021145,2]
[386464466,1758309038454,-480.0,0.00021145,2]
[386464467,1758309038463,-480.0,0.00021145,2]
[386464468,1758309038472,-480.0,0.00021145,2]
[386464469,1758309038482,-480.0,0.00021145,2]
[386464470,1758309038491,-480.0,0.00021145,2]
[386464471,1758309038500,-480.0,0.00021145,2]
[386464472,1758309038510,-480.0,0.00021145,2]
[386464473,1758309038520,-480.0,0.00021145,2]
[386464474,1758309038530,-480.0,0.00021145,2]
[386464475,1758309038540,-480.0,0.00021145,2]
[386464476,1758309038549,-480.0,0.00021145,2]
[386464477,1758309038559,-480.0,0.00021145,2]
[386464478,1758309038568,-480.0,0.00021145,2]
[386464479,1758309038577,-480.0,0.00021145,2]
[386464480,1758309038586,-480.0,0.00021145,2]
[386464481,1758309038596,-480.0,0.00021145,2]
[386464482,1758309038606,-480.0,0.00021145,2]
[386464483,1758309038615,-480.0,0.00021145,2]
[386464485,1758309038627,-480.0,0.00021145,2]
[386464488,1758309038636,-480.0,0.00021145,2]
[386464491,1758309038646,-480.0,0.00021145,2]
[386464493,1758309038655,-480.0,0.00021145,2]
[386464495,1758309038664,-480.0,0.00021145,2]
[386464497,1758309038673,-480.0,0.00021145,2]
[386464499,1758309038683,-480.0,0.00021145,2]
[386464501,1758309038691,-492.20820192,0.00021145,2]
[386464503,1758309038701,-588.1483793,0.00021145,2]
[386464505,1758309038711,-594.47105701,0.00021145,2]
[386464507,1758309038720,-480.0,0.00021145,2]
[386464509,1758309038729,-480.0,0.00021145,2]
[386464511,1758309038738,-480.0,0.00021145,2]
[386464513,1758309038748,-480.0,0.00021145,2]
[386464515,1758309038757,-491.81959489,0.00021145,2]
[386464517,1758309038766,-480.0,0.00021145,2]
[386464519,1758309038775,-480.0,0.00021145,2]
[386464521,1758309038784,-480.0,0.00021145,2]
[386464523,1758309038794,-480.0,0.00021145,2]
[386464524,1758309038803,-480.0,0.00021145,2]
[386464525,1758309038812,-251.84508973,0.00021145,2]
[386464526,1758309038821,-480.0,0.00021145,2]
[386464527,1758309038831,-480.0,0.00021145,2]
[386464528,1758309038840,-502.05436363,0.00021145,2]
[386464529,1758309038850,-480.0,0.00021145,2]
[386464530,1758309038859,-480.0,0.00021145,2]
[386464531,1758309038868,-480.0,0.00021145,2]
[386464532,1758309038878,-480.0,0.00021145,2]
[386464533,1758309038887,-480.0,0.00021145,2]